Cogmind - Beta 12 @@@ ROGUE MODE // 2023.03.11 @ 00:15:01 Player: Michael Result: Destroyed by as-31557 with Assembled Blade Performance ------------- Evolutions (0) 0 Regions Visited (2) 400 Robots Destroyed (14) 70 Value Destroyed (239) 239 Prototype IDs (0) 0 Alien Tech Used (0) 0 Bonus (0) 0 TOTAL SCORE: 709 Bonus ------- None Cogmind --------- Core Integrity 0/250 Matter 228/300 Energy 100/100 System Corruption 0% Temperature Cool (0) Movement Core (400) Ox7 Location -10/Mines Parts ------- > --- POWER (1) -------- (None) > --- PROPULSION (2) --- (None) > --- UTILITY (2) ------ Large Storage Unit Signal Interpreter > --- WEAPON (2) ------- Assault Rifle Assault Rifle > --- INVENTORY (15) --- Wheel Wheel Heat Sink Medium Storage Unit Cargo Storage Unit Structural Scanner Terrain Scanner Light Assault Rifle Light Assault Rifle Light Assault Rifle Peak State ------------ > --- POWER ------------ Ion Engine > --- PROPULSION ------- Aluminum Leg Aluminum Leg > --- UTILITY ---------- Heat Sink Medium Storage Unit > --- WEAPON ----------- Assault Rifle Assault Rifle > --- INVENTORY -------- Light Treads Wheel Large Storage Unit Cargo Storage Unit Structural Scanner Signal Interpreter Terrain Scanner Light Assault Rifle Light Assault Rifle [Rating: 8] Favorites ----------- Power Ion Engine Engine Ion Engine Propulsion Aluminum Leg Treads Light Treads Leg Aluminum Leg Wheel Wheel Utility Small Storage Unit Device Heat Sink Storage Small Storage Unit Processor Signal Interpreter Weapon Assault Rifle Ballistic Gun Assault Rifle Build | -11 -10 -10 ------- Run | Jun Mat Min Slots Evolved . | . . . Power . | . . . Propulsion . | . . . Utility . | . . . Weapon . | . . . Parts Attached 19 | 6 12 1 Power 1 | 1 . . Engine 1 | 1 . . Core . | . . . Reactor . | . . . Propulsion 8 | 2 5 1 Treads 1 | . . 1 Leg 5 | 2 3 . Wheel 2 | . 2 . Hover . | . . . Flight . | . . . Utility 6 | 1 5 . Device 2 | . 2 . Storage 3 | 1 2 . Processor 1 | . 1 . Hackware . | . . . Protection . | . . . Artifact . | . . . Weapon 4 | 2 2 . Energy Gun . | . . . Energy Cannon . | . . . Ballistic Gun 4 | 2 2 . Ballistic Cannon . | . . . Launcher . | . . . Special Weapon . | . . . Impact Weapon . | . . . Slashing Weapon . | . . . Piercing Weapon . | . . . Special Melee Weapon . | . . . Unidentified Prototypes . | . . . Parts Lost 3 | . . 3 Power 1 | . . 1 Propulsion 2 | . . 2 Utility . | . . . Weapon . | . . . Highest Loss Streak 3 | . . 3 To Critical Strikes . | . . . Average Slot Usage (%) 92 | . 92 90 Engine 13 | . 14 9 Leg 24 | . 26 . Wheel 1 | . . 16 Device 7 | . 8 . Storage 14 | . 14 14 Processor 1 | . . 14 Ballistic Gun 27 | . 27 28 Naked Turns . | . . . Heaviest Build 30 | 14 30 29 Greatest Support 20 | 20 20 20 Greatest Overweight (x) 6 | . 6 1 Average Overweight (x) . | . . 1 Largest Inventory Capacity 15 | 8 15 15 Average Capacity 9 | 7 9 15 Most Carried 11 | 3 11 11 Average Carried 7 | 1 7 11 Final Capacity 15 | 8 15 15 Final Carried 11 | 3 11 11 Class Distribution -------------------- 100% | Mutant Dominant Class ---------------- Mutant | -10/Materials Mutant | -10/Mines Resources | -11 -10 -10 ----------- Run | Jun Mat Min Matter Collected 519 | 203 316 . Remotely . | . . . Salvage Created 475 | . 375 100 Parts 36 | . 27 9 Haulers Intercepted . | . . . Recyclers Shooed 2 | . 2 . Parts Field Recycled . | . . . Retrieved Matter . | . . . Parts Self-Destructed . | . . . Prevented . | . . . Kills | -11 -10 -10 ------- Run | Jun Mat Min Combat Hostiles Destroyed 14 | . 9 5 Guns 14 | . 9 5 Classes Destroyed 7 | . 5 2 Worker 1 | . 1 . Tunneler 1 | . . 1 Recycler 1 | . 1 . Watcher 1 | . 1 . Swarmer 6 | . 6 . Grunt 4 | . 3 1 Assembled 4 | . . 4 Best Kill Streak 6 | . 4 6 Combat Bots Only 5 | . 4 5 Max Kills in Single Turn 1 | . 1 1 Gunslinging . | . . . Exploded . | . . . Melee . | . . . Uniques/NPCs Destroyed . | . . . Combat | -11 -10 -10 -------- Run | Jun Mat Min Damage Taken 765 | . 182 583 Core 251 | . 72 179 Absorbed by Shields . | . . . Regen/Repaired (Parts) 63 | . 63 . Core Remaining (%) 100 | 100 . . Volleys Fired 36 | . 25 11 Largest 2 | . 2 2 Hottest 40 | . 40 40 Shots Fired 72 | . 50 22 Gun 72 | . 50 22 Cannon . | . . . Launcher . | . . . Special . | . . . Kinetic 72 | . 50 22 Thermal . | . . . Explosive . | . . . Electromagnetic . | . . . Robot Hit Streak 9 | . 8 9 Robot Miss Streak 3 | . 3 2 Penetration Max . | . . . Secondary Targets 4 | . 1 3 Max Gunslinging Chain 1 | . 1 1 Shots Hit Robots 46 | . 29 17 Core Hits 26 | . 17 9 Critical Kills . | . . . Critical Parts Destroyed . | . . . Critical Strikes . | . . . Melee Attacks . | . . . Impact . | . . . Slashing . | . . . Piercing . | . . . Sneak Attacks . | . . . Combat Hostiles . | . . . Follow-up Attacks . | . . . Damage Inflicted 642 | . 405 237 Guns 642 | . 405 237 Cannons . | . . . Explosions . | . . . Melee . | . . . Ramming . | . . . Kinetic 642 | . 405 237 Thermal . | . . . Explosive . | . . . Electromagnetic . | . . . Impact . | . . . Slashing . | . . . Piercing . | . . . Highest Corruption . | . . . Average Corruption . | . . . Corruption Purged . | . . . Corruption Blocked . | . . . Overload Shots . | . . . Overflow Damage . | . . . Projectiles . | . . . Explosions . | . . . Melee . | . . . Knockbacks . | . . . Impact . | . . . Kinetic . | . . . Secondary . | . . . Self-Inflicted Damage . | . . . Shots . | . . . Rammed . | . . . Targets Rammed . | . . . Kicked . | . . . Crushed . | . . . Highest Temperature 2 | . 2 2 Average Temperature 2 | . 2 2 Received Heat Transfer 147 | . 57 90 Siege Activations . | . . . Robots Corrupted . | . . . Combat Hostiles . | . . . Parts Fried . | . . . Impact Corruptions . | . . . Robots Melted . | . . . Combat Hostiles . | . . . Parts Melted . | . . . Heat Transferred . | . . . Parts Sabotaged . | . . . Parts Stolen . | . . . Parts Stripped . | . . . Power Chain Reactions . | . . . Missiles Intercepted . | . . . Alert | -11 -10 -10 ------- Run | Jun Mat Min Peak Influence 202 | . 202 98 Initial 78 | . . 78 Average 77 | . 83 79 Maximum Alert Level 1 | . 1 . Low Security (%) 98 | 100 98 100 Level 1 1 | . 1 . Level 2 . | . . . Level 3 . | . . . Level 4 . | . . . Level 5 . | . . . High Security . | . . . Max Security . | . . . Squads Dispatched 2 | . 2 . Investigation . | . . . Extermination . | . . . Reinforcement 2 | . 2 . Assault . | . . . Garrison . | . . . Intercept . | . . . Searches Triggered . | . . . Construction Impeded . | . . . Haulers Reinforced . | . . . Active Scanning Responses . | . . . Cargo Convoy Interrupts . | . . . Stealth | -11 -10 -10 --------- Run | Jun Mat Min Distress Signals 2 | . 2 . Communications Jammed . | . . . Distress Signals . | . . . Times Spotted 34 | . 17 17 Peak Tracking Total 20 | . 4 20 Tactical Retreats 2 | . 1 1 Traps | -11 -10 -10 ------- Run | Jun Mat Min Traps Triggered 2 | . 2 . Indirectly . | . . . Trap Hack Attempts . | . . . Triggered . | . . . Disarmed . | . . . Reprogrammed . | . . . Reused . | . . . Traps Extracted . | . . . Installed . | . . . Triggered . | . . . Machines | -11 -10 -10 ---------- Run | Jun Mat Min Machines Disabled . | . . . Max in Single Turn . | . . . Machines Repaired . | . . . Machines Sabotaged . | . . . Overloaded Fab Kills . | . . . Hacking | -11 -10 -10 --------- Run | Jun Mat Min Machines Accessed 6 | . 6 . Terminals 5 | . 5 . Fabricators . | . . . Repair Stations 1 | . 1 . Recycling Units . | . . . Scanalyzers . | . . . Garrison Access . | . . . Total Hacks 9 | . 9 . Successful 6 | . 6 . Failed 3 | . 3 . Catastrophic 2 | . 2 . Database Lockouts . | . . . Manual . | . . . Terminals 7 | . 7 . Fabricators . | . . . Repair Stations 2 | . 2 . Recycling Units . | . . . Scanalyzers . | . . . Garrison Access . | . . . Terminal Hacks 4 | . 4 . Dispatch Records 1 | . 1 . Hauler Manifests 1 | . 1 . Zone Layout 2 | . 2 . Fabricator Hacks . | . . . Repair Station Hacks 2 | . 2 . Scan Component 1 | . 1 . Repair 1 | . 1 . Recycling Unit Hacks . | . . . Scanalyzer . | . . . Garrison Access Hacks . | . . . Unauthorized Hacks . | . . . Terminals . | . . . Fabricators . | . . . Repair Stations . | . . . Recycling Units . | . . . Scanalyzers . | . . . Garrison Access . | . . . Data Cores Recovered . | . . . Used . | . . . Hacking Detections 2 | . 2 . Full Trace Events . | . . . Feedback Events . | . . . Feedback Blocked . | . . . Robot Schematics Acquired . | . . . Robots Built . | . . . Authchips . | . . . Time . | . . . Total Robot Build Rating . | . . . Part Schematics Acquired . | . . . Parts Built . | . . . Authchips . | . . . Time . | . . . Total Part Build Rating . | . . . Parts Repaired 1 | . 1 . Time 26 | . 26 . Parts Recycled . | . . . Recycled Matter . | . . . Retrieved Matter . | . . . Retrieved Components . | . . . Parts Scanalyzed . | . . . Part Schematics Acquired . | . . . Parts Damaged . | . . . Bothacking | -11 -10 -10 ------------ Run | Jun Mat Min Used RIF Installer . | . . . Robots Hacked . | . . . Non-combat . | . . . Combat . | . . . Robot Hacks Applied . | . . . Relay Couplers Released . | . . . Fabnet Peak Effective % . | . . . Robots Rewired . | . . . Allies Hacked . | . . . Hacks Repelled . | . . . Allies | -11 -10 -10 -------- Run | Jun Mat Min Total Allies . | . . . Largest Group . | . . . Highest-Rated Group . | . . . Highest-Rated Ally . | . . . Total Orders . | . . . Ally Attacks . | . . . Total Damage . | . . . Kills . | . . . Allies Corrupted . | . . . Allies Melted . | . . . Intel | -11 -10 -10 ------- Run | Jun Mat Min Robot Analysis Total . | . . . Derelict Logs Recovered 1 | . . 1 Drone Launches . | . . . Drone Recoveries . | . . . Exploration | -11 -10 -10 ------------- Run | Jun Mat Min Turns Passed 886 | 57 771 58 Spaces Moved 592 | 43 524 25 Core 9 | 8 1 . Treads . | . . . Legs 548 | 35 513 . Wheels 35 | . 10 25 Hover . | . . . Flight . | . . . Fastest Speed 50 | 50 80 95 Average Speed 118 | 106 120 95 Slowest Speed 350 | 120 350 95 Overloaded Moves . | . . . Propulsion Burnouts . | . . . Robots Hopped . | . . . Cave-ins Triggered . | . . . Exploration Rate (%) 37 | 3 93 15 Regions Visited 2 Branch Regions 1 Pre-discovered Areas . | . . . Known Exits Taken 1 | . 1 . Unknown Exits Taken 1 | 1 . . Scrap Searched . | . . . Spaces Dug . | . . . Terrain Destroyed . | . . . Melee . | . . . Projectile . | . . . AOE . | . . . Terrain Rammed . | . . . Walls Destroyed . | . . . Machines Disabled . | . . . Actions | -11 -10 -10 --------- Run | Jun Mat Min Total 701 | 51 613 37 Wait 37 | . 37 . Move 590 | 42 523 25 Hop . | . . . Pick Up 13 | 3 10 . Fast Attach 13 | 6 7 . Attach . | . . . Detach . | . . . Swap 6 | . 5 1 Drop 6 | . 6 . Fire 36 | . 25 11 Melee . | . . . Ram . | . . . Kick . | . . . Crush . | . . . Escape Stasis . | . . . Rewire . | . . . Trap . | . . . Miscellaneous . | . . . Route ------- -11/Junkyard -10/Materials (discovered 4 exits: [*Mat x3] / *Min) -10/Mines History --------- Turn | Location | Event 6 | -11/Junkyard | Discovered new exit (range 14) 58 | -11/Junkyard | Entered Materials 227 | -10/Materials | Discovered new exit (range 15) 304 | -10/Materials | Build established: Mutant 370 | -10/Materials | Discovered new exit (range 11) 473 | -10/Materials | Discovered new exit (range 10) 624 | -10/Materials | Repaired Assault Rifle 730 | -10/Materials | Discovered new exit (range 14) 829 | -10/Materials | Identified exit to Mines 829 | -10/Materials | Entered Mines 836 | -10/Mines | Assembled infested the area 841 | -10/Mines | Assisted by a Guerilla fighting off Assembled 850 | -10/Mines | Learned Materials security intel 872 | -10/Mines | Core integrity fell below 50% 875 | -10/Mines | Core integrity fell below 20% 887 | -10/Mines | Destroyed by as-31557 with Assembled Blade Last Messages --------------- 00845_ HV Slug penetrates Wall. 00850_ Acquired derelict log, extracted data. Data stored: Materials security intel. 00855_ Knocked back. 00856_ T-07 Excavator is excavating. 00861_ G-34 Mercenary destroyed. 00864_ Wheel destroyed. 00864_ as-28461 destroyed. 00864_ Switching to secondary target: G-47 Trooper. 00864_ T-07 Excavator is excavating. 00867_ as-05645 destroyed. 00867_ Switching to secondary target: G-47 Trooper. 00867_ Ion Engine destroyed. 00869_ T-07 Excavator is excavating. 00876_ as-87320 destroyed. 00876_ Switching to secondary target: G-47 Trooper. 00877_ T-07 Excavator is excavating. 00882_ T-07 Excavator destroyed. 00885_ as-02064 destroyed. 00887_ Lgt. Treads destroyed. Map ----- +----------------------------------------------------+ | ????????????????????????????? #???????????????? | | ????????????????????????????? ????#??????????? | | ????????????????????????????# #?## #??????????? | | ????????????????????????????# ##"# #??????????? | | ??????????????????###???????# ##?????????? | | ????????????###??## #?????## ##????????? | | ??????????? ## #????# % ?????????? | | ???????????? #???# ????????????? | | ?????????????""" #?## #??????????????? | | ?????????????""" ## #???????????????? | | ??????????? """ #???????????????? | | ?????????? ##??????????????? | | ?????????? #??????????????? | | ?????????? #??????????????? | | ??????????# ### #??????????????? | | ????????????????## ## ## ##??????????????? | | ?????????????????##??## ######???????????????? | | ??????????????????????### #????????????????????? | | ????????????????????????# #????????????????????? | | ????????????????????????# #????????????????????? | | ????????????????????????# #????????????????????? | | ????????????????????????# #????????????????????? | | ????????????????????????#a#????????????????????? | | ????????????????#########a#????????????????????? | | ???????????????## * %aa####=!#??????????????? | | ????????????# =%= @% !*%#??????????????? | | ???????????# g ######### =|#??????????????? | | ??????????# ?????????????????????????????? | | ?????????? ????????????????????????????????? | | ??????????? ???????????????????????????????????? | | ???????????????????????????????????????????????? | | ???????????????????????????????????????????????? | | ???????????????????????????????????????????????? | | ???????????????????????????????????????????????? | | ???????????????????????????????????????????????? | | | | | | | | | | | | | | | | | | | | | | | | | | | | | | | +----------------------------------------------------+ Best States ------------- Heat Dissipation 35 Energy Generation 10 Energy Capacity 250 Matter Stores 299 Matter Capacity 300 Sight Range 16 Terrain Scan Range 14 Terrain Scan Density 10 Evasion (%) 55 Recoil Reduction 1 Item Schematics ----------------- None Robot Schematics ------------------ None Fabricated ------------ Nothing Alien Tech Used ----------------- None Achievements -------------- None Challenges ------------ None Game ------ Seed SurgeImpulseScanner Manual? 0 Play Time 00:12:51 Cumulative 734.1 hours Start 2023.03.11 @ 00:02:05 End 2023.03.11 @ 00:15:01 Sessions 1 Manual Loads 0 Difficulty Rogue Special Mode None Game No. 216 Rogue 180 Adventurer 36 Explorer 0 Win Type - Total 15 Types 15/0/0/0/0/0/0/0/0 Lore% 56 Gallery% 63 Achievement% 49 Wizard Run 0 Options --------- ASCII 0 Keyboard 1 Movement Vi Keybinds 0 Fullscreen 1 Font 18/Terminus Map View 76x50 Tactical HUD 1 Map Filters NONE Filters NONE Steam 0 RUN: 7989dfc2-6f27-469c-a44c-7c4c9624f410